fUSD/lending_fUSD_20241002
["ID","MTS","AMOUNT","RATE_DAILY","PERIOD"]
[339728857,1727904711200,152.097279,0.00022,120]
[339728861,1727904948165,151.82578,0.00022,120]
[339728862,1727904948290,151.82578,0.00022,120]
[339728863,1727905049866,-151.0,0.00011,2]
[339728864,1727905057805,-500.0,0.00011,2]
[339728865,1727905058396,-500.0,0.00011,2]
[339728866,1727905059003,-500.0,0.00011,2]
[339728867,1727905060151,-500.0,0.00011,2]
[339728868,1727905062886,-500.0,0.00011,2]
[339728869,1727905063344,-500.0,0.00011,2]
[339728870,1727905065137,-500.0,0.00011,2]
[339728871,1727905066843,-500.0,0.00011,2]
[339728872,1727905068530,-500.0,0.00011,2]
[339728873,1727905069073,-500.0,0.00011,2]
[339728874,1727905069693,-500.0,0.00011,2]
[339728875,1727905071358,-500.0,0.00011,2]
[339728876,1727905073375,-410.9818888,0.000109,2]
[339728877,1727905073394,-89.0181112,0.00011,2]
[339728878,1727905073516,-410.9818888,0.00011,2]
[339728879,1727905073536,-89.0181112,0.00011,2]
[339728880,1727905075210,-410.9818888,0.00011,2]
[339728881,1727905075230,-89.0181112,0.00011,2]
[339728882,1727905078675,-410.9818888,0.00011,2]
[339728883,1727905078696,-89.0181112,0.00011,2]
[339728884,1727905079738,-410.9818888,0.00011,2]
[339728885,1727905079761,-89.0181112,0.00011,2]
[339728886,1727905080311,-410.9818888,0.00011,2]
[339728887,1727905080333,-89.0181112,0.00011,2]
[339728888,1727905082085,-410.9818888,0.00011,2]
[339728889,1727905082108,-89.0181112,0.00011,2]
[339728890,1727905086965,-410.9818888,0.00011,2]
[339728891,1727905086986,-89.0181112,0.00011,2]
[339728892,1727905087489,-410.9818888,0.00011,2]
[339728893,1727905087512,-89.0181112,0.00011,2]
[339728894,1727905088562,-410.9818888,0.00011,2]
[339728895,1727905088583,-89.0181112,0.00011,2]
[339728896,1727905089129,-410.9818888,0.00011,2]
[339728897,1727905089151,-89.0181112,0.00011,2]
[339728898,1727905090869,-410.9818888,0.00011,2]
[339728899,1727905090891,-89.0181112,0.00011,2]
[339728900,1727905092565,-410.9818888,0.00011,2]
[339728901,1727905092586,-89.0181112,0.00011,2]
[339728902,1727905093076,-410.9818888,0.00011,2]
[339728903,1727905093100,-89.0181112,0.00011,2]
[339728904,1727905093560,-410.9818888,0.00011,2]
[339728905,1727905093589,-89.0181112,0.00011,2]
[339728906,1727905094109,-410.9818888,0.00011,2]
[339728907,1727905094131,-89.0181112,0.00011,2]
[339728908,1727905096148,-410.9818888,0.00011,2]
[339728909,1727905096170,-89.0181112,0.00011,2]
[339728910,1727905096513,-410.9818888,0.00011,2]
[339728911,1727905096534,-89.0181112,0.00011,2]
[339728912,1727905097007,-410.9818888,0.00011,2]
[339728913,1727905097032,-89.0181112,0.00011,2]
[339728914,1727905097673,-410.9818888,0.00011,2]
[339728915,1727905097695,-89.0181112,0.00011,2]
[339728916,1727905103074,-410.9818888,0.00011,2]
[339728917,1727905103435,-89.0181112,0.00011,2]
[339728918,1727905103719,-410.9818888,0.00011,2]
[339728919,1727905103742,-89.0181112,0.00011,2]
[339728920,1727905105450,-410.9818888,0.00011,2]
[339728921,1727905105472,-89.0181112,0.00011,2]
[339728922,1727905110893,-410.9818888,0.00011,2]
[339728923,1727905110915,-89.0181112,0.00011,2]
[339728924,1727905116105,-410.9818888,0.00011,2]
[339728925,1727905116126,-89.0181112,0.00011,2]
[339728926,1727905117332,-410.9818888,0.00011,2]
[339728927,1727905117353,-89.0181112,0.00011,2]
[339728928,1727905117920,-410.9818888,0.00011,2]
[339728929,1727905119950,-410.9818888,0.00011,2]
[339728930,1727905120488,-89.0181112,0.00011,2]
[339728931,1727905120513,-410.9818888,0.00011,2]
[339728932,1727905123265,-89.0181112,0.00011,2]
[339728933,1727905123290,-321.9637776,0.00011,2]
[339728934,1727905124512,-178.0362224,0.00011,2]
[339728935,1727905124536,-321.9637776,0.00011,2]
[339728936,1727905129673,-178.0362224,0.00011,2]
[339728937,1727905129696,-232.9456664,0.00011,2]
[339728938,1727905131315,-267.0543336,0.00011,2]
[339728939,1727905131337,-232.9456664,0.00011,2]
[339728940,1727905133488,-267.0543336,0.00011,2]
[339728941,1727905133512,-143.9275552,0.00011,2]
[339728942,1727905134517,-356.0724448,0.00011,2]
[339728943,1727905134539,-143.9275552,0.00011,2]
[339728944,1727905139897,-356.0724448,0.00011,2]
[339728945,1727905139919,-54.909444,0.00011,2]
[339728946,1727905141017,-445.090556,0.00011,2]
[339728947,1727905141040,-54.909444,0.00011,2]
[339728948,1727905148316,-150.0,0.00010999,2]
[339728949,1727905148339,-260.9818888,0.00011,2]
[339728950,1727905149377,-184.1086672,0.00011,2]
[339728951,1727905149401,-315.8913328,0.00011,2]
[339728952,1727905150594,-184.1086672,0.00011,2]
[339728953,1727905150619,-226.8732216,0.00011,2]
[339728954,1727905151554,-273.1267784,0.00011,2]
[339728955,1727905151576,-226.8732216,0.00011,2]
[339728956,1727905314939,271.69,9.734e-05,2]
[339728957,1727905442362,-166.68,0.00010959,2]
[339728958,1727905442385,-133.32,0.00010999,2]
[339728959,1727905447979,-166.68,0.00010999,2]
[339728960,1727905448002,-273.1267784,0.00011,2]
[339728961,1727905448023,-60.1932216,0.00011,2]
[339728962,1727905452280,-439.8067784,0.00011,2]
[339728963,1727905452302,-60.1932216,0.00011,2]
[339728964,1727905453866,-439.8067784,0.00011,2]
[339728965,1727905453889,-60.1932216,0.00011,2]
[339728966,1727905460615,-439.8067784,0.00011,2]
[339728967,1727905461200,-500.0,0.00011,2]
[339728968,1727905465853,-439.8067784,0.00011,2]
[339728969,1727905466917,-60.1932216,0.00011,2]
[339728970,1727905466939,-500.0,0.00011,2]
[339728971,1727905466961,-111.8067784,0.00011,2]
[339728972,1727905469232,-388.1932216,0.00011,2]
[339728973,1727905469253,-111.8067784,0.00011,2]
[339728974,1727905470879,-388.1932216,0.00011,2]
[339728975,1727905470901,-111.8067784,0.00011,2]
[339728976,1727905476084,-388.1932216,0.00011,2]
[339728977,1727905476674,-500.0,0.00011,2]
[339728978,1727905478243,-500.0,0.00011,2]
[339728979,1727905480610,-388.1932216,0.00011,2]
[339728980,1727905481151,-111.8067784,0.00011,2]
[339728981,1727905481174,-388.1932216,0.00011,2]
[339728982,1727905483298,-111.8067784,0.00011,2]
[339728983,1727905483323,-276.3864432,0.00011,2]
[339728984,1727905483838,-223.6135568,0.00011,2]
[339728985,1727905483861,-276.3864432,0.00011,2]
[339728986,1727905486526,-223.6135568,0.00011,2]
[339728987,1727905486548,-276.3864432,0.00011,2]
[339728988,1727905488897,-223.6135568,0.00011,2]
[339728989,1727905488919,-276.3864432,0.00011,2]
[339728990,1727905490794,-223.6135568,0.00011,2]
[339728991,1727905490817,-304.3864432,0.00011,2]
[339728992,1727905499628,-195.6135568,0.00011,2]
[339728993,1727905499653,-28.0,0.00011,2]
[339728994,1727905501092,-223.6135568,0.00011,2]
[339728995,1727905504084,-223.6135568,0.00010999,2]
[339728996,1727905510103,-76.3864432,0.00010999,2]
[339728997,1727905510129,-147.2271136,0.00011,2]
[339728998,1727905511673,-101.1593296,0.00011,2]
[339728999,1727905511697,-94.4542272,0.00011,2]
[339729000,1727905514886,-405.5457728,0.00011,2]
[339729001,1727905514909,-66.4542272,0.00011,2]
[339729002,1727905522348,-248.3864432,0.00011,2]
[339729003,1727905529323,-185.1593296,0.00011,2]
[339729004,1727905529346,-220.3864432,0.00011,2]
[339729005,1727905532490,-279.6135568,0.00011,2]
[339729006,1727905532513,-153.932216,0.00011,2]
[339729007,1727905534629,-185.1593296,0.00011,2]
[339729074,1727905648147,170.92,9.118e-05,2]
[339729077,1727905816040,229.08,9.327e-05,2]
[339729078,1727905816062,49.95,9.327e-05,2]
[339729089,1727905831774,-150.0,0.00010844,2]
[339729090,1727905831784,-753.9059,0.00010899,2]
[339729091,1727905831794,-150.0,0.00010945,2]
[339729092,1727905831803,-163.4,0.00010959,2]
[339729093,1727905831813,-300.0,0.00010999,2]
[339729094,1727905831823,-160.9084544,0.00011,2]
[339729095,1727905831832,-500.0,0.00011,2]
[339729096,1727905831841,-500.0,0.00011,2]
[339729097,1727905831851,-500.0,0.00011,2]
[339729098,1727905831860,-672.0,0.00011,2]
[339729099,1727905831870,-500.0,0.00011,2]
[339729101,1727905831879,-500.0,0.00011,2]
[339729103,1727905831888,-500.0,0.00011,2]
[339729105,1727905831898,-150.55691285,0.00011,2]
[339729107,1727905831911,-349.44308715,0.00011,2]
[339729109,1727905831920,-500.0,0.00011,2]
[339729111,1727905831930,-500.0,0.00011,2]
[339729113,1727905831939,-500.0,0.00011,2]
[339729115,1727905831949,-500.0,0.00011,2]
[339729117,1727905831959,-88.55324689,0.00011,2]
[339729118,1727905831970,-439.44675311,0.00011,2]
[339729119,1727905831980,-2247.20533702,0.00011238,2]
[339729120,1727905831991,-231.96466298,0.00011238,2]
[339729121,1727905831999,-229.26,0.00011238,2]
[339729122,1727905832009,-300.93,0.00011269,2]
[339729124,1727905832019,-1000.0,0.00011288,2]
[339729125,1727905832028,-250.0,0.00011342,2]
[339729126,1727905832037,-1087.43,0.00011389,2]
[339729127,1727905832047,-998.41,0.00011397,2]
[339729128,1727905832056,-150.0,0.00011515,2]
[339729129,1727905832066,-150.0,0.00011515,2]
[339729130,1727905832075,-150.0,0.00011515,2]
[339729131,1727905832085,-150.0,0.00011515,2]
[339729132,1727905832094,-150.0,0.00011515,2]
[339729133,1727905832103,-150.99,0.00011515,2]
[339729134,1727905832112,-189.28,0.00011517,2]
[339729135,1727905832122,-165.87,0.00011534,2]
[339729136,1727905832131,-643.79,0.00011573,2]
[339729137,1727905832141,-189.28,0.00011575,2]
[339729138,1727905832151,-279.03,0.0001159,2]
[339729139,1727905832161,-200.0,0.0001163,2]
[339729140,1727905832171,-250.0,0.00011651,2]
[339729141,1727905832180,-166.83,0.00011832,2]
[339729142,1727905832189,-250.0,0.0001195,2]
[339729143,1727905832199,-420.0,0.00012087,2]
[339729144,1727905832208,-187.27,0.00012167,2]
[339729145,1727905832218,-193.4,0.00012451,2]
[339729146,1727905832231,-186.25,0.00012458,2]
[339729147,1727905832240,-454.3305723,0.000125,2]
[339729148,1727905832264,-536.83568415,0.000125,2]
[339729149,1727905832276,-1625.4462774,0.000125,2]
[339729150,1727905832285,-6243.2312,0.000126,2]
[339729151,1727905832295,-2879.5962644,0.000126,2]
[339729152,1727905832305,-396.14,0.000126,2]
[339729153,1727905832315,-1894.4575,0.000126,2]
[339729154,1727905832324,-2879.59626438,0.00012611,2]
[339729155,1727905832334,-2879.59626438,0.00012622,2]
[339729156,1727905832343,-2879.59626438,0.00012633,2]
[339729157,1727905832353,-229.26,0.00012643,2]
[339729158,1727905832362,-2879.59626438,0.00012644,2]
[339729159,1727905832371,-2879.59626438,0.00012656,2]
[339729160,1727905832381,-2879.59626438,0.00012667,2]
[339729161,1727905832391,-38560.16379386,0.00012672,2]
[339729162,1727905832403,-4700.0,0.00012672,2]
[339729163,1727905832415,-419.83620614,0.00012672,2]
[339729164,1727905832425,-8.620283,0.00012678,2]
[339729165,1727905832436,-711.01118688,0.00012678,2]
[339729166,1727905832448,-1827.91072361,0.00012678,2]
[339729167,1727905832463,-332.05407089,0.00012678,2]
[339729168,1727905832472,-760.79675745,0.0001268,2]
[339729169,1727905832491,-962.68554255,0.0001268,2]
[339729170,1727905832500,-2879.59626438,0.00012689,2]
[339729171,1727905832509,-500.0,0.00012698,2]
[339729172,1727905832518,-252.38906609,0.00012698,2]
[339729173,1727905832528,-252.38906609,0.00012698,2]
[339729174,1727905832537,-252.38906609,0.00012699,2]
[339729175,1727905832546,-1000.0,0.00012699,2]
[339729176,1727905832555,-1915.15,0.000127,2]
[339729177,1727905832565,-12128.1848,0.000127,2]
[339729178,1727905832574,-175.229,0.000127,2]
[339729179,1727905832584,-1000.0,0.000127,2]
[339729180,1727905832593,-2952.7526,0.000127,2]
[339729181,1727905832603,-15406.67,0.000127,2]
[339729182,1727905832612,-480.2651,0.000127,2]
[339729183,1727905832622,-201.34185824,0.000127,2]
[339729184,1727905832631,-4909.717,0.000127,2]
[339729185,1727905832641,-9615.42487579,0.000127,2]
[339729186,1727905832653,-5809.2950591,0.000127,2]
[339729187,1727905832665,-2374.59617983,0.000127,2]
[339729188,1727905832676,-4221.79258543,0.000127,2]
[339729189,1727905832688,-1181.26213134,0.000127,2]
[339729190,1727905832703,-600.0,0.000127,2]
[339729191,1727905832715,-4806.42344999,0.000127,2]
[339729192,1727905832725,-6000.0,0.000127,2]
[339729193,1727905832761,-62709.31811852,0.000127,2]
[339729194,1727905832771,-9688.7468,0.000127,2]
[339729195,1727905832780,-172.71481387,0.000127,2]
[339729196,1727905832790,-7500.0,0.000127,2]
[339729197,1727905832800,-617.469,0.000127,2]
[339729198,1727905832809,-926.08055544,0.000127,2]
[339729199,1727905832819,-2879.59626438,0.000127,2]
[339729200,1727905832828,-1215.0,0.000127,2]
[339729201,1727905832838,-1102.08305385,0.000127,2]
[339729202,1727905832847,-150.0,0.00012704,2]
[339729203,1727905832856,-176.356,0.00012709,2]
[339729204,1727905832866,-1243.33523212,0.0001277,2]
[339729205,1727905832875,-500.0,0.00012773,2]
[339729206,1727905832884,-180.0,0.00012781,2]
[339729207,1727905832894,-150.0,0.00012795,2]
[339729208,1727905832903,-13437.3994229,0.00012798,2]
[339729209,1727905832914,-48157.7519446,0.00012798,2]
[339729210,1727905832924,-11495.1056605,0.00012798,2]
[339729211,1727905832933,-500.0,0.00012799,2]
[339729212,1727905832943,-162.92436218,0.00012799,2]
[339729213,1727905832952,-645.0,0.000128,2]
[339729214,1727905832961,-254296.94017145,0.000128,2]
[339729215,1727905832973,-305.74564537,0.000128,2]
[339729216,1727905832984,-7211.0,0.000128,2]
[339729217,1727905832995,-978.62989679,0.000128,2]
[339729218,1727905833007,-686.70513767,0.000128,2]
[339729219,1727905833018,-1132.38722525,0.000128,2]
[339729220,1727905833030,-3945.10507133,0.000128,2]
[339729221,1727905833041,-549.00973517,0.000128,2]
[339729222,1727905833053,-130926.26105943,0.000128,2]
[339729223,1727905833065,-3603.53690901,0.000128,2]
[339729224,1727905833076,-2497.50370162,0.000128,2]
[339729242,1727905837577,-252.38906609,0.00012699,2]
[339729243,1727905837587,-820942.281645,0.000128,2]
[339729244,1727905837599,-342.06210541,0.000128,2]
[339729245,1727905837610,-7958.54185658,0.000128,2]
[339729246,1727905837622,-1118.72412771,0.000128,2]
[339729247,1727905837634,-5340.98495427,0.000128,2]
[339729248,1727905837645,-338.26352533,0.000128,2]
[339729249,1727905837665,-76950.63606646,0.000128,2]
[339729250,1727905837676,-6515.0,0.000128,2]
[339729251,1727905837702,-6470.20833297,0.000128,2]
[339729252,1727905837714,-6016.27157419,0.000128,2]
[339729253,1727905837725,-318.4011789,0.000128,2]
[339729254,1727905837736,-462.45588772,0.000128,2]
[339729255,1727905837748,-461.27657119,0.000128,2]
[339729256,1727905837759,-400.0,0.000128,2]
[339729257,1727905837807,-7825.25422745,0.000128,2]
[339729258,1727905837818,-238370.0,0.000128,2]
[339729259,1727905837830,-2644.17619719,0.000128,2]
[339729260,1727905837841,-729.66,0.000128,2]
[339729268,1727905839364,-252.38906609,0.00012699,2]
[339729269,1727905839374,-6312.43330641,0.000128,2]
[339729270,1727905839391,-1341.45000002,0.000128,2]
[339729271,1727905839403,-262.894995,0.000128,2]
[339729272,1727905839428,-1523.70155,0.000128,2]
[339729273,1727905839439,-282.41499999,0.000128,2]
[339729274,1727905839451,-13604.42213353,0.000128,2]
[339729280,1727905840975,-1550.571495,0.000128,2]
[339729281,1727905840999,-2958.27976326,0.000128,2]
[339729282,1727905841010,-950.72932172,0.000128,2]
[339729283,1727905841021,-31238.89417484,0.000128,2]
[339729284,1727905841032,-255.4974,0.000128,2]
[339729285,1727905841043,-302.2027,0.000128,2]
[339729286,1727905841122,-27951.61099557,0.000128,2]
[339729287,1727905841133,-17938.58497464,0.000128,2]
[339729288,1727905841149,-1505.04594099,0.000128,2]
[339729298,1727905842480,-4125.70551397,0.000128,2]
[339729300,1727905842491,-642.70249532,0.000128,2]
[339729301,1727905842502,-1109.25964547,0.000128,2]
[339729302,1727905842567,-211371.97607568,0.000128,2]
[339729303,1727905842578,-483433.90440105,0.000128,2]
[339729304,1727905842589,-382.92113158,0.000128,2]
[339729305,1727905842731,-313.82450785,0.000128,2]
[339729306,1727905842742,-603.62491081,0.000128,2]
[339729318,1727905845493,-252.38906609,0.00012699,2]
[339729319,1727905845502,-575.0,0.000128,2]
[339729320,1727905845512,-159171.49599389,0.000128,2]
[339729499,1727906028631,350.05,9.118e-05,2]
[339729500,1727906028653,344.95,9.118e-05,2]
[339729501,1727906453232,55.05,9.932e-05,2]
[339729502,1727906453253,252.43,9.932e-05,2]
[339729549,1727907025777,147.57,9.53e-05,2]
[339729550,1727907025803,162.18,9.53e-05,2]
[339729578,1727907032094,-799.0,0.00010393,2]
[339729580,1727907032104,-799.0,0.00010393,2]
[339729582,1727907032117,-796.04740967,0.00010393,2]
[339729583,1727907032129,-30.1275424,0.00010393,2]
[339729584,1727907032141,-799.0,0.00010825,2]
[339729585,1727907032151,-158.23,0.00010959,2]
[339729586,1727907032162,-250.0,0.00011,2]
[339729587,1727907032173,-799.0,0.00011395,2]
[339729588,1727907032184,-355.89,0.00011498,2]
[339729589,1727907032195,-300.0,0.00011514,2]
[339729590,1727907032205,-150.0,0.00011515,2]
[339729591,1727907032215,-150.0,0.00011515,2]
[339729592,1727907032226,-150.0,0.00011515,2]
[339729593,1727907032236,-150.0,0.00011515,2]
[339729594,1727907032247,-250.0,0.00011663,2]
[339729595,1727907032258,-1896.03933041,0.00011671,2]
[339729596,1727907032271,-4247.03282957,0.00011671,2]
[339729597,1727907033207,-894.38164469,0.00011671,2]
[339729598,1727907033221,-741.8811006,0.00011671,2]
[339729599,1727907033233,-1367.57781629,0.00011671,2]
[339729600,1727907033246,-784.34351086,0.00011671,2]
[339729601,1727907033258,-484.24933358,0.00011671,2]
[339729602,1727907033270,-251.35461498,0.00011671,2]
[339729603,1727907033283,-478.31588386,0.00011671,2]
[339729604,1727907033294,-5736.80393516,0.00011671,2]
[339729605,1727907033304,-250.0,0.00011727,2]
[339729606,1727907033314,-309.75,0.00011794,2]
[339729607,1727907033324,-350.0,0.00011853,2]
[339729608,1727907033334,-1000.0,0.00011853,2]
[339729609,1727907033343,-235.98,0.00011876,2]
[339729610,1727907033353,-799.0,0.00011995,2]
[339729611,1727907033364,-150.0,0.00012155,2]
[339729612,1727907033374,-1629.549,0.00012223,2]
[339729613,1727907033384,-150.0,0.00012353,2]
[339729614,1727907033394,-168.14,0.00012473,2]
[339729615,1727907033403,-533.9,0.00012478,2]
[339729616,1727907033413,-533.9,0.00012478,2]
[339729617,1727907033423,-533.9,0.00012478,2]
[339729618,1727907033433,-533.9,0.00012478,2]
[339729619,1727907033442,-150.0,0.00012543,2]
[339729620,1727907033452,-1386.399,0.00012543,2]
[339729621,1727907033461,-1082.0,0.00012543,2]
[339729622,1727907033470,-180.0,0.00012591,2]
[339729623,1727907033479,-930.7177,0.000126,2]
[339729624,1727907033489,-799.0,0.00012626,2]
[339729625,1727907033498,-240.0,0.00012646,2]
[339729626,1727907033507,-500.0,0.00012698,2]
[339729627,1727907033517,-581.963,0.00012699,2]
[339729628,1727907033526,-172.71481386,0.000127,2]
[339729629,1727907033536,-8265.25190193,0.000127,2]
[339729630,1727907033546,-3942.1077,0.000127,2]
[339729631,1727907033555,-30951.36053844,0.000127,2]
[339729632,1727907033564,-184.41415678,0.000127,2]
[339729633,1727907033576,-504.77813218,0.000127,2]
[339729634,1727907033585,-481.3916,0.000127,2]
[339729635,1727907033595,-367.36101795,0.000127,2]
[339729636,1727907033604,-203.62056159,0.000127,2]
[339729637,1727907033615,-176.935,0.00012706,2]
[339729638,1727907033625,-1000.0,0.0001277,2]
[339729639,1727907033635,-186.67744967,0.0001279,2]
[339729640,1727907033645,-186.67744967,0.0001279,2]
[339729641,1727907033654,-150.0,0.00012795,2]
[339729642,1727907033665,-254.94671445,0.00012795,2]
[339729643,1727907033675,-197.60350103,0.00012795,2]
[339729644,1727907033684,-14909.9141016,0.00012797,2]
[339729645,1727907033694,-723.0,0.000128,2]
[339729646,1727907033704,-37352.25379612,0.000128,2]
[339729647,1727907033715,-1522.06617273,0.000128,2]
[339729648,1727907033728,-2127.12108198,0.000128,2]
[339729649,1727907033747,-3547.89675971,0.000128,2]
[339729650,1727907033762,-9994.43274948,0.000128,2]
[339729651,1727907033777,-637.70410917,0.000128,2]
[339729652,1727907033789,-844.4503927,0.000128,2]
[339729653,1727907033800,-6959.30203298,0.000128,2]
[339729654,1727907033812,-1299.333284,0.000128,2]
[339729658,1727907037551,-576.87446552,0.000128,2]
[339729659,1727907037563,-2235.6136962,0.000128,2]
[339729660,1727907037576,-539.84931,0.000128,2]
[339729661,1727907037588,-918.803945,0.000128,2]
[339729662,1727907037598,-6985.98856048,0.000128,2]
[339729663,1727907037609,-345.44,0.000128,2]
[339729664,1727907037622,-421.399227,0.000128,2]
[339729665,1727907037634,-11520.88776301,0.000128,2]
[339729666,1727907037646,-902.63081299,0.000128,2]
[339729667,1727907037660,-599.9066196,0.000128,2]
[339729668,1727907037671,-1427.2185654,0.000128,2]
[339729669,1727907037683,-1239.22320358,0.000128,2]
[339729670,1727907037694,-615.002,0.000128,2]
[339729671,1727907037752,-531.06930366,0.000128,2]
[339729672,1727907037763,-400.0,0.000128,2]
[339729673,1727907037775,-6525.06999584,0.000128,2]
[339729674,1727907037790,-2896.39516468,0.000128,2]
[339729675,1727907037801,-468.87,0.000128,2]
[339729676,1727907037820,-4181.1963038,0.000128,2]
[339729837,1727907039621,-30993.07578089,0.000128,2]
[339729839,1727907039633,-2835.5760042,0.000128,2]
[339729841,1727907039644,-840.77658634,0.000128,2]
[339729843,1727907039658,-359.18974162,0.000128,2]
[339729851,1727907039727,-719.26763437,0.000128,2]
[339729853,1727907039738,-388212.42913122,0.000128,2]
[339729855,1727907039749,-2015.94855758,0.000128,2]
[339729858,1727907039760,-9899.60970702,0.000128,2]
[339729860,1727907039772,-645.57847922,0.000128,2]
[339729862,1727907039783,-1714.25660773,0.000128,2]
[339729864,1727907039794,-1007.52312096,0.000128,2]
[339729866,1727907039806,-395.92311807,0.000128,2]
[339729869,1727907039826,-1700.0,0.000128,2]
[339729871,1727907039838,-1641.52714712,0.000128,2]
[339729878,1727907039899,-1094.57625342,0.000128,2]
[339729880,1727907039910,-1383.75,0.000128,2]
[339729882,1727907039921,-477.21,0.000128,2]
[339729884,1727907039932,-1440.18554912,0.000128,2]
[339729886,1727907039943,-518.424,0.000128,2]
[339730153,1727907042709,-12722.77961447,0.000128,2]
[339730155,1727907042720,-402.615,0.000128,2]
[339730158,1727907042735,-940.88298682,0.000128,2]
[339730160,1727907042745,-2498.82070866,0.000128,2]
[339730162,1727907042756,-8264.97603201,0.000128,2]
[339730191,1727907043018,-177805.24882099,0.000128,2]
[339730193,1727907043029,-3592.67573094,0.000128,2]
[339730195,1727907043040,-1509.89121034,0.000128,2]
[339730197,1727907043051,-412548.6292,0.000128,2]
[339730199,1727907043062,-300.0,0.000128,2]
[339730201,1727907043073,-564.94607574,0.000128,2]
[339730204,1727907043084,-73187.12598657,0.000128,2]
[339730206,1727907043099,-3608.49551145,0.000128,2]
[339730208,1727907043110,-2149.47125223,0.000128,2]
[339730214,1727907043155,-504.23064588,0.000128,2]
[339730421,1727907045732,-85036.03377011,0.000128,2]
[339730722,1727907106379,161.702089,0.00022,120]
[339730723,1727907106682,161.702089,0.00022,120]
[339730724,1727907107049,161.702089,0.00022,120]
[339730725,1727907107349,161.702089,0.00022,120]
[339730726,1727907107660,161.702089,0.00022,120]
[339730727,1727907107986,161.702089,0.00022,120]
[339730728,1727907108274,161.702089,0.00022,120]
[339730729,1727907269447,237.82,9.932e-05,2]
[339730730,1727907269467,60.18,9.932e-05,2]
[339730731,1727907620505,315.12,9.967e-05,2]
[339730732,1727907929550,24.7,0.000101,2]
[339730733,1727907929572,400.0,0.000101,2]
[339730734,1727907929593,400.0,0.000101,2]
[339730735,1727907929613,300.0,0.000101,2]
[339730736,1727907929637,35669.23430885,0.000101,2]
[339730745,1727908125460,300.0,9.618e-05,2]
[339730746,1727908125483,15.7,9.618e-05,2]
[339730792,1727908231879,-799.0,0.00010393,2]
[339730793,1727908231889,-423.86198095,0.00010613,2]
[339730805,1727908237741,-375.13801905,0.00010613,2]
[339730806,1727908237751,-167.24,0.00010959,2]
[339730807,1727908237763,-367.60833546,0.00011172,2]
[339730808,1727908237836,-431.39166454,0.00011172,2]
[339730809,1727908237846,-177.94,0.00011462,2]
[339730810,1727908237857,-2071.87900342,0.00011462,2]
[339730811,1727908237883,-351.97296993,0.00011462,2]
[339730812,1727908237951,-14397.00014555,0.00011462,2]
[339730813,1727908237960,-1000.0,0.00011472,2]
[339730814,1727908237971,-942.510451,0.00011478,2]
[339730815,1727908237981,-250.0,0.00011517,2]
[339730816,1727908237990,-188.78,0.00011536,2]
[339730817,1727908238001,-250.0,0.00011747,2]
[339730818,1727908238011,-799.0,0.0001176,2]
[339730819,1727908238021,-315.7,0.00011882,2]
[339730820,1727908238031,-150.0,0.00011887,2]
[339730821,1727908238041,-66181.293088,0.00011888,2]
[339730822,1727908238050,-3367.67114989,0.00011912,2]
[339730823,1727908238112,-755.41195691,0.00011912,2]
[339730824,1727908238146,-4729.79999998,0.00011912,2]
[339730828,1727908240129,-13093.70689322,0.00011912,2]
[339730829,1727908240139,-170.34,0.00011966,2]
[339730830,1727908240148,-1536.96,0.00011966,2]